[Event "Titled Tuesday Blitz August 24 2021"]
[White "Maghsoodloo, Parham"]
[Black "Makhnev, Denis"]
[WhiteFideId "12539929"]
[BlackFideId "13707647"]
[WhiteElo "2601"]
[BlackElo "2537"]
[Result "1-0"]
[Round "06"]
[TimeControl "180+1"]
[Date "2021.08.24"]
[WhiteClock "0:00:29"]
[BlackClock "0:00:01"]

1. c4 {[%clk 0:03:00]}  c6 {[%clk 0:02:59]} 2. g3 {[%clk 0:02:57]}  d5 {[%clk 0:02:59]} 3. Nf3 {[%clk 0:02:58]}  Nf6 {[%clk 0:02:59]} 4. Bg2 {[%clk 0:02:58]}  a6 {[%clk 0:02:54]} 5. b3 {[%clk 0:02:56]}  Bf5 {[%clk 0:02:53]} 6. O-O {[%clk 0:02:46]}  e6 {[%clk 0:02:53]} 7. Bb2 {[%clk 0:02:43]}  Nbd7 {[%clk 0:02:51]} 8. d3 {[%clk 0:02:39]}  h6 {[%clk 0:02:50]} 9. Nbd2 {[%clk 0:02:39]}  Bc5 {[%clk 0:02:49]} 10. a3 {[%clk 0:02:39]}  a5 {[%clk 0:02:48]} 11. Qc2 {[%clk 0:02:38]}  O-O {[%clk 0:02:47]} 12. Bc3 {[%clk 0:02:38]}  Qe7 {[%clk 0:02:41]} 13. Qb2 {[%clk 0:02:36]}  Bd6 {[%clk 0:02:36]} 14. b4 {[%clk 0:02:36]}  axb4 {[%clk 0:02:35]} 15. axb4 {[%clk 0:02:36]}  e5 {[%clk 0:02:32]} 16. c5 {[%clk 0:02:30]}  Bc7 {[%clk 0:02:30]} 17. e4 {[%clk 0:02:25]}  dxe4 {[%clk 0:02:28]} 18. Nh4 {[%clk 0:02:24]}  Bh7 {[%clk 0:02:17]} 19. dxe4 {[%clk 0:02:24]}  b6 {[%clk 0:02:13]} 20. cxb6 {[%clk 0:02:01]}  Bxb6 {[%clk 0:02:12]} 21. Nf5 {[%clk 0:01:48]}  Bxf5 {[%clk 0:02:11]} 22. exf5 {[%clk 0:01:48]}  Rxa1 {[%clk 0:02:01]} 23. Rxa1 {[%clk 0:01:47]}  e4 {[%clk 0:01:57]} 24. Nc4 {[%clk 0:01:45]}  e3 {[%clk 0:01:17]} 25. fxe3 {[%clk 0:01:45]}  Bxe3+ {[%clk 0:01:11]} 26. Kh1 {[%clk 0:01:44]}  Nb6 {[%clk 0:00:19]} 27. Bxf6 {[%clk 0:01:37]}  gxf6 {[%clk 0:00:11]} 28. Nxe3 {[%clk 0:01:37]}  Qxe3 {[%clk 0:00:11]} 29. Qxf6 {[%clk 0:01:38]}  Nd5 {[%clk 0:00:09]} 30. Qxc6 {[%clk 0:01:27]}  Nxb4 {[%clk 0:00:09]} 31. Qc4 {[%clk 0:01:26]}  Nd3 {[%clk 0:00:09]} 32. Bd5 {[%clk 0:01:11]}  Nf2+ {[%clk 0:00:07]} 33. Kg2 {[%clk 0:01:11]}  Nd3 {[%clk 0:00:03]} 34. Ra2 {[%clk 0:00:37]}  Ne5 {[%clk 0:00:01]} 35. Qh4 {[%clk 0:00:29]} 1-0


[Site "https://www.chess.com"]

[Event "Titled Tuesday Blitz August 24 2021"]
[White "Maltsevskaya, Aleksandra"]
[Black "davigator"]
[WhiteFideId "24174041"]
[WhiteElo "2225"]
[BlackElo "2388"]
[Result "0-1"]
[Round "06"]
[TimeControl "180+1"]
[Date "2021.08.24"]
[WhiteClock "0:00:01"]
[BlackClock "0:00:13"]

1. e4 {[%clk 0:03:00]}  c5 {[%clk 0:02:58]} 2. d4 {[%clk 0:02:59]}  cxd4 {[%clk 0:02:57]} 3. c3 {[%clk 0:03:00]}  Nf6 {[%clk 0:02:56]} 4. e5 {[%clk 0:02:59]}  Nd5 {[%clk 0:02:55]} 5. Nf3 {[%clk 0:03:00]}  d6 {[%clk 0:02:54]} 6. cxd4 {[%clk 0:02:56]}  Nc6 {[%clk 0:02:53]} 7. Bc4 {[%clk 0:02:56]}  e6 {[%clk 0:02:53]} 8. O-O {[%clk 0:02:55]}  Nb6 {[%clk 0:02:50]} 9. Bb3 {[%clk 0:02:52]}  d5 {[%clk 0:02:49]} 10. Nc3 {[%clk 0:02:45]}  Be7 {[%clk 0:02:48]} 11. Be3 {[%clk 0:02:42]}  a6 {[%clk 0:02:49]} 12. Ne1 {[%clk 0:02:42]}  Bd7 {[%clk 0:02:49]} 13. f4 {[%clk 0:02:42]}  Na5 {[%clk 0:02:47]} 14. f5 {[%clk 0:02:40]}  Nbc4 {[%clk 0:02:44]} 15. Bxc4 {[%clk 0:02:38]}  Nxc4 {[%clk 0:02:43]} 16. Qe2 {[%clk 0:02:32]}  Bg5 {[%clk 0:02:36]} 17. Bf2 {[%clk 0:02:20]}  Nd2 {[%clk 0:02:28]} 18. Nf3 {[%clk 0:02:19]}  Nxf1 {[%clk 0:02:25]} 19. Rxf1 {[%clk 0:02:20]}  Bh6 {[%clk 0:02:19]} 20. f6 {[%clk 0:02:15]}  g6 {[%clk 0:02:18]} 21. Qd3 {[%clk 0:01:29]}  Qa5 {[%clk 0:02:14]} 22. Rd1 {[%clk 0:01:19]}  Rc8 {[%clk 0:02:11]} 23. Be1 {[%clk 0:01:18]}  Qb6 {[%clk 0:02:09]} 24. Bd2 {[%clk 0:01:05]}  Bf8 {[%clk 0:02:03]} 25. h4 {[%clk 0:00:47]}  Bb5 {[%clk 0:01:52]} 26. Qe3 {[%clk 0:00:44]}  h6 {[%clk 0:01:23]} 27. Rc1 {[%clk 0:00:32]}  Bd7 {[%clk 0:01:20]} 28. b3 {[%clk 0:00:29]}  Ba3 {[%clk 0:01:18]} 29. Rc2 {[%clk 0:00:28]}  Bb4 {[%clk 0:01:17]} 30. Kh2 {[%clk 0:00:28]}  a5 {[%clk 0:01:07]} 31. Ne1 {[%clk 0:00:22]}  Qa6 {[%clk 0:01:04]} 32. Nd3 {[%clk 0:00:21]}  Bf8 {[%clk 0:01:03]} 33. Rc1 {[%clk 0:00:18]}  b6 {[%clk 0:01:01]} 34. Nf4 {[%clk 0:00:10]}  Qb7 {[%clk 0:00:53]} 35. Qg3 {[%clk 0:00:10]}  Kd8 {[%clk 0:00:53]} 36. Nce2 {[%clk 0:00:07]}  Rxc1 {[%clk 0:00:45]} 37. Nxc1 {[%clk 0:00:08]}  Qc6 {[%clk 0:00:44]} 38. Nce2 {[%clk 0:00:08]}  Qc2 {[%clk 0:00:43]} 39. Be3 {[%clk 0:00:06]}  g5 {[%clk 0:00:43]} 40. Nh5 {[%clk 0:00:01]}  gxh4 {[%clk 0:00:42]} 41. Qf3 {[%clk 0:00:01]}  Bb5 {[%clk 0:00:36]} 42. Nef4 {[%clk 0:00:01]}  Qe4 {[%clk 0:00:35]} 43. Ng7 {[%clk 0:00:01]}  Qxf3 {[%clk 0:00:34]} 44. gxf3 {[%clk 0:00:02]}  Kd7 {[%clk 0:00:28]} 45. Kh3 {[%clk 0:00:02]}  Rh7 {[%clk 0:00:23]} 46. Nfh5 {[%clk 0:00:02]}  Be2 {[%clk 0:00:23]} 47. Kg2 {[%clk 0:00:01]}  h3+ {[%clk 0:00:23]} 48. Kf2 {[%clk 0:00:01]}  h2 {[%clk 0:00:22]} 49. Kg2 {[%clk 0:00:01]}  Bxf3+ {[%clk 0:00:22]} 50. Kxh2 {[%clk 0:00:01]}  Bxh5 {[%clk 0:00:22]} 51. Nxh5 {[%clk 0:00:02]}  Rh8 {[%clk 0:00:22]} 52. Kh3 {[%clk 0:00:03]}  Rg8 {[%clk 0:00:22]} 53. Ng3 {[%clk 0:00:03]}  Rg6 {[%clk 0:00:21]} 54. Kg2 {[%clk 0:00:01]}  Ba3 {[%clk 0:00:20]} 55. Kf3 {[%clk 0:00:01]}  Bb2 {[%clk 0:00:19]} 56. Nh5 {[%clk 0:00:02]}  Rg5 {[%clk 0:00:19]} 57. Bxg5 {[%clk 0:00:01]}  hxg5 {[%clk 0:00:19]} 58. Ke3 {[%clk 0:00:02]}  g4 {[%clk 0:00:19]} 59. Ng3 {[%clk 0:00:02]}  Bc1+ {[%clk 0:00:19]} 60. Kf2 {[%clk 0:00:01]}  Kc6 {[%clk 0:00:19]} 61. Ne2 {[%clk 0:00:02]}  Bd2 {[%clk 0:00:18]} 62. Kg3 {[%clk 0:00:02]}  Kb5 {[%clk 0:00:17]} 63. Kxg4 {[%clk 0:00:03]}  Kb4 {[%clk 0:00:17]} 64. Kf3 {[%clk 0:00:02]}  Ka3 {[%clk 0:00:17]} 65. Ng3 {[%clk 0:00:01]}  Kxa2 {[%clk 0:00:17]} 66. Nh5 {[%clk 0:00:02]}  Kxb3 {[%clk 0:00:17]} 67. Ng7 {[%clk 0:00:02]}  Bh6 {[%clk 0:00:17]} 68. Ne8 {[%clk 0:00:03]}  a4 {[%clk 0:00:16]} 69. Nd6 {[%clk 0:00:03]}  a3 {[%clk 0:00:15]} 70. Nxf7 {[%clk 0:00:04]}  a2 {[%clk 0:00:16]} 71. Nxh6 {[%clk 0:00:04]}  a1=Q {[%clk 0:00:16]} 72. Ng4 {[%clk 0:00:05]}  Qxd4 {[%clk 0:00:16]} 73. f7 {[%clk 0:00:04]}  Qe4+ {[%clk 0:00:16]} 74. Kg3 {[%clk 0:00:04]}  Qf5 {[%clk 0:00:15]} 75. Nh6 {[%clk 0:00:02]}  Qg6+ {[%clk 0:00:13]} 76. Kf3 {[%clk 0:00:01]}  Qg7 {[%clk 0:00:13]} 0-1


[Site "https://www.chess.com"]

[Event "Titled Tuesday Blitz August 24 2021"]
[White "Martinez Reyes, Pedro Ramon"]
[Black "Kowalczyk, Pawel"]
[WhiteFideId "3901807"]
[BlackFideId "1130641"]
[WhiteElo "2398"]
[BlackElo "2325"]
[Result "1-0"]
[Round "06"]
[TimeControl "180+1"]
[Date "2021.08.24"]
[WhiteClock "0:00:12"]
[BlackClock "0:00:42"]

1. b3 {[%clk 0:03:00]}  a6 {[%clk 0:02:54]} 2. g3 {[%clk 0:03:00]}  c5 {[%clk 0:02:53]} 3. Bg2 {[%clk 0:03:00]}  d5 {[%clk 0:02:53]} 4. Bb2 {[%clk 0:03:00]}  Nc6 {[%clk 0:02:53]} 5. Nf3 {[%clk 0:02:58]}  Nf6 {[%clk 0:02:54]} 6. d4 {[%clk 0:02:58]}  cxd4 {[%clk 0:02:53]} 7. Nxd4 {[%clk 0:02:58]}  e6 {[%clk 0:02:53]} 8. O-O {[%clk 0:02:57]}  Be7 {[%clk 0:02:53]} 9. c4 {[%clk 0:02:57]}  O-O {[%clk 0:02:52]} 10. Nc3 {[%clk 0:02:56]}  Nxd4 {[%clk 0:02:49]} 11. Qxd4 {[%clk 0:02:56]}  dxc4 {[%clk 0:02:50]} 12. Qxc4 {[%clk 0:02:47]}  b5 {[%clk 0:02:47]} 13. Qc6 {[%clk 0:02:40]}  Ra7 {[%clk 0:02:46]} 14. Rfd1 {[%clk 0:02:39]}  Rd7 {[%clk 0:02:46]} 15. Rxd7 {[%clk 0:02:33]}  Qxd7 {[%clk 0:02:47]} 16. Rd1 {[%clk 0:02:31]}  Qa7 {[%clk 0:02:44]} 17. Ne4 {[%clk 0:02:21]}  Nd5 {[%clk 0:02:43]} 18. Bd4 {[%clk 0:02:09]}  Qb7 {[%clk 0:02:36]} 19. Qc2 {[%clk 0:02:01]}  Rd8 {[%clk 0:02:31]} 20. Qb2 {[%clk 0:01:50]}  f6 {[%clk 0:02:29]} 21. Nc5 {[%clk 0:01:46]}  Qc7 {[%clk 0:02:27]} 22. Rc1 {[%clk 0:01:42]}  Qd6 {[%clk 0:02:25]} 23. Ne4 {[%clk 0:01:37]}  Qa3 {[%clk 0:02:24]} 24. Nc5 {[%clk 0:01:23]}  Qxb2 {[%clk 0:02:17]} 25. Bxb2 {[%clk 0:01:23]}  Kf7 {[%clk 0:02:12]} 26. a3 {[%clk 0:01:19]}  f5 {[%clk 0:02:07]} 27. Nd3 {[%clk 0:01:18]}  Bd6 {[%clk 0:02:04]} 28. Bxd5 {[%clk 0:01:11]}  exd5 {[%clk 0:02:03]} 29. b4 {[%clk 0:01:06]}  Bd7 {[%clk 0:01:57]} 30. Be5 {[%clk 0:01:05]}  Bxe5 {[%clk 0:01:48]} 31. Nxe5+ {[%clk 0:01:06]}  Ke6 {[%clk 0:01:48]} 32. Nf3 {[%clk 0:01:01]}  Kd6 {[%clk 0:01:48]} 33. Nd4 {[%clk 0:01:00]}  Re8 {[%clk 0:01:46]} 34. e3 {[%clk 0:01:00]}  g5 {[%clk 0:01:46]} 35. Kf1 {[%clk 0:00:50]}  f4 {[%clk 0:01:42]} 36. Ke2 {[%clk 0:00:50]}  fxe3 {[%clk 0:01:42]} 37. fxe3 {[%clk 0:00:50]}  Re4 {[%clk 0:01:40]} 38. Rf1 {[%clk 0:00:48]}  Ke7 {[%clk 0:01:34]} 39. Kd3 {[%clk 0:00:46]}  h5 {[%clk 0:01:26]} 40. Rf2 {[%clk 0:00:42]}  h4 {[%clk 0:01:26]} 41. Rg2 {[%clk 0:00:42]}  hxg3 {[%clk 0:01:20]} 42. Rxg3 {[%clk 0:00:40]}  g4 {[%clk 0:01:20]} 43. Rg2 {[%clk 0:00:41]}  Kd6 {[%clk 0:01:20]} 44. Rf2 {[%clk 0:00:40]}  Ke7 {[%clk 0:01:17]} 45. Rf4 {[%clk 0:00:40]}  Re5 {[%clk 0:01:16]} 46. Ne2 {[%clk 0:00:34]}  Rh5 {[%clk 0:01:15]} 47. Rf2 {[%clk 0:00:33]}  Bf5+ {[%clk 0:01:13]} 48. Kd4 {[%clk 0:00:34]}  Be6 {[%clk 0:00:59]} 49. Ng3 {[%clk 0:00:28]}  Rh3 {[%clk 0:00:57]} 50. Ne2 {[%clk 0:00:26]}  Rf3 {[%clk 0:00:54]} 51. Rg2 {[%clk 0:00:23]}  Kd6 {[%clk 0:00:50]} 52. Nf4 {[%clk 0:00:22]}  Bf5 {[%clk 0:00:44]} 53. Nxd5 {[%clk 0:00:17]}  Rf1 {[%clk 0:00:44]} 54. e4 {[%clk 0:00:16]}  Rd1+ {[%clk 0:00:42]} 55. Ke3 {[%clk 0:00:13]}  Re1+ {[%clk 0:00:42]} 56. Re2 {[%clk 0:00:14]}  Rxe2+ {[%clk 0:00:43]} 57. Kxe2 {[%clk 0:00:15]}  Bxe4 {[%clk 0:00:43]} 58. Nc3 {[%clk 0:00:14]}  Bc2 {[%clk 0:00:40]} 59. Ke3 {[%clk 0:00:15]}  Ke5 {[%clk 0:00:41]} 60. Ne2 {[%clk 0:00:14]}  Kd5 {[%clk 0:00:40]} 61. Kd2 {[%clk 0:00:10]}  Bg6 {[%clk 0:00:38]} 62. Nf4+ {[%clk 0:00:10]}  Kc4 {[%clk 0:00:38]} 63. Nxg6 {[%clk 0:00:11]}  Kb3 {[%clk 0:00:39]} 64. Ne5 {[%clk 0:00:11]}  Kxa3 {[%clk 0:00:39]} 65. Kc3 {[%clk 0:00:12]}  a5 {[%clk 0:00:39]} 66. bxa5 {[%clk 0:00:11]}  b4+ {[%clk 0:00:40]} 67. Kd3 {[%clk 0:00:11]}  Ka2 {[%clk 0:00:41]} 68. Nc4 {[%clk 0:00:11]}  b3 {[%clk 0:00:42]} 69. a6 {[%clk 0:00:12]} 1-0


[Site "https://www.chess.com"]

[Event "Titled Tuesday Blitz August 24 2021"]
[White "Mitrabha, Guha"]
[Black "Sharapov, Evgeny"]
[WhiteFideId "5057000"]
[BlackFideId "14103133"]
[WhiteElo "2334"]
[BlackElo "2367"]
[Result "0-1"]
[Round "06"]
[TimeControl "180+1"]
[Date "2021.08.24"]
[WhiteClock "0:00:20"]
[BlackClock "0:01:05"]

1. c4 {[%clk 0:03:00]}  c5 {[%clk 0:02:59]} 2. g3 {[%clk 0:03:00]}  Nc6 {[%clk 0:02:59]} 3. Bg2 {[%clk 0:03:01]}  g6 {[%clk 0:02:59]} 4. Nc3 {[%clk 0:02:58]}  Bg7 {[%clk 0:02:59]} 5. e3 {[%clk 0:02:58]}  e5 {[%clk 0:02:59]} 6. Nge2 {[%clk 0:02:58]}  Nge7 {[%clk 0:02:58]} 7. O-O {[%clk 0:02:59]}  O-O {[%clk 0:02:58]} 8. a3 {[%clk 0:03:00]}  a5 {[%clk 0:02:57]} 9. d3 {[%clk 0:02:59]}  d6 {[%clk 0:02:57]} 10. Nd5 {[%clk 0:03:00]}  Rb8 {[%clk 0:02:57]} 11. Nec3 {[%clk 0:02:59]}  Nxd5 {[%clk 0:02:56]} 12. Nxd5 {[%clk 0:02:59]}  Be6 {[%clk 0:02:50]} 13. Rb1 {[%clk 0:02:59]}  Ne7 {[%clk 0:02:48]} 14. b4 {[%clk 0:02:59]}  axb4 {[%clk 0:02:47]} 15. axb4 {[%clk 0:02:59]}  cxb4 {[%clk 0:02:44]} 16. Rxb4 {[%clk 0:02:57]}  Nxd5 {[%clk 0:02:43]} 17. cxd5 {[%clk 0:02:58]}  Bd7 {[%clk 0:02:43]} 18. Ba3 {[%clk 0:02:57]}  b5 {[%clk 0:02:42]} 19. Rb1 {[%clk 0:02:57]}  Qb6 {[%clk 0:02:39]} 20. Qb3 {[%clk 0:02:55]}  Rfc8 {[%clk 0:02:38]} 21. Bb4 {[%clk 0:02:54]}  Bf8 {[%clk 0:02:34]} 22. h4 {[%clk 0:02:42]}  h5 {[%clk 0:02:33]} 23. Rfd1 {[%clk 0:02:38]}  Ra8 {[%clk 0:02:27]} 24. d4 {[%clk 0:02:17]}  exd4 {[%clk 0:02:26]} 25. Rxd4 {[%clk 0:02:18]}  Bf5 {[%clk 0:02:18]} 26. Rf1 {[%clk 0:02:13]}  Bc2 {[%clk 0:02:07]} 27. Qb2 {[%clk 0:02:13]}  Bg7 {[%clk 0:01:58]} 28. Bc3 {[%clk 0:02:12]}  Bf5 {[%clk 0:01:52]} 29. Rd3 {[%clk 0:01:53]}  Rxc3 {[%clk 0:01:37]} 30. Rxc3 {[%clk 0:01:54]}  b4 {[%clk 0:01:37]} 31. Rc6 {[%clk 0:01:50]}  Qxc6 {[%clk 0:01:31]} 32. Qxg7+ {[%clk 0:01:49]}  Kxg7 {[%clk 0:01:31]} 33. dxc6 {[%clk 0:01:50]}  b3 {[%clk 0:01:30]} 34. Bd5 {[%clk 0:00:36]}  b2 {[%clk 0:01:27]} 35. e4 {[%clk 0:00:32]}  Bh3 {[%clk 0:01:14]} 36. c7 {[%clk 0:00:26]}  Ra1 {[%clk 0:01:13]} 37. Kh2 {[%clk 0:00:20]}  Bc8 {[%clk 0:01:05]} 0-1


[Site "https://www.chess.com"]

[Event "Titled Tuesday Blitz August 24 2021"]
[White "Nilsen, Tobias Lang"]
[Black "Jeet, Jain"]
[WhiteFideId "1521624"]
[BlackFideId "5073022"]
[WhiteElo "1975"]
[BlackElo "2085"]
[Result "0-1"]
[Round "06"]
[TimeControl "180+1"]
[Date "2021.08.24"]
[WhiteClock "0:00:05"]
[BlackClock "0:00:16"]

1. e4 {[%clk 0:03:00]}  e5 {[%clk 0:03:00]} 2. Nf3 {[%clk 0:03:00]}  Nc6 {[%clk 0:03:00]} 3. Bb5 {[%clk 0:02:59]}  a6 {[%clk 0:03:00]} 4. Ba4 {[%clk 0:03:00]}  Nf6 {[%clk 0:03:00]} 5. O-O {[%clk 0:03:00]}  Be7 {[%clk 0:03:00]} 6. Re1 {[%clk 0:03:00]}  b5 {[%clk 0:03:00]} 7. Bb3 {[%clk 0:03:00]}  d6 {[%clk 0:03:01]} 8. a4 {[%clk 0:03:01]}  Bd7 {[%clk 0:02:52]} 9. d3 {[%clk 0:03:00]}  O-O {[%clk 0:02:50]} 10. Nbd2 {[%clk 0:03:00]}  Na5 {[%clk 0:02:49]} 11. Ba2 {[%clk 0:02:59]}  bxa4 {[%clk 0:02:49]} 12. Nf1 {[%clk 0:02:59]}  c5 {[%clk 0:02:47]} 13. Ng3 {[%clk 0:02:59]}  Re8 {[%clk 0:02:45]} 14. h3 {[%clk 0:02:49]}  h6 {[%clk 0:02:43]} 15. Nh4 {[%clk 0:02:47]}  Nxe4 {[%clk 0:02:28]} 16. dxe4 {[%clk 0:02:47]}  Bxh4 {[%clk 0:02:28]} 17. Qxd6 {[%clk 0:02:48]}  Qc8 {[%clk 0:01:50]} 18. Bxh6 {[%clk 0:02:31]}  Be6 {[%clk 0:01:39]} 19. Be3 {[%clk 0:01:53]}  Nb7 {[%clk 0:01:28]} 20. Qd1 {[%clk 0:01:49]}  g6 {[%clk 0:01:21]} 21. Bd5 {[%clk 0:01:39]}  Bxd5 {[%clk 0:01:14]} 22. exd5 {[%clk 0:01:38]}  f5 {[%clk 0:01:14]} 23. d6 {[%clk 0:01:32]}  Qe6 {[%clk 0:01:13]} 24. Rxa4 {[%clk 0:01:20]}  Bf6 {[%clk 0:01:09]} 25. Qe2 {[%clk 0:00:58]}  Qxd6 {[%clk 0:01:07]} 26. Qc4+ {[%clk 0:00:56]}  Kg7 {[%clk 0:01:04]} 27. b4 {[%clk 0:00:34]}  Qc6 {[%clk 0:01:04]} 28. bxc5 {[%clk 0:00:29]}  f4 {[%clk 0:01:03]} 29. Rb4 {[%clk 0:00:24]}  fxe3 {[%clk 0:01:00]} 30. Ne4 {[%clk 0:00:20]}  exf2+ {[%clk 0:00:59]} 31. Kxf2 {[%clk 0:00:21]}  Bh4+ {[%clk 0:00:55]} 32. g3 {[%clk 0:00:21]}  Rf8+ {[%clk 0:00:55]} 33. Kg1 {[%clk 0:00:21]}  Be7 {[%clk 0:00:51]} 34. Rb6 {[%clk 0:00:20]}  Qd7 {[%clk 0:00:47]} 35. c6 {[%clk 0:00:19]}  Qc7 {[%clk 0:00:41]} 36. Rxb7 {[%clk 0:00:15]}  Qd8 {[%clk 0:00:40]} 37. Qc5 {[%clk 0:00:12]}  Rf7 {[%clk 0:00:40]} 38. Qe3 {[%clk 0:00:11]}  Rc8 {[%clk 0:00:38]} 39. Rd7 {[%clk 0:00:11]}  Qh8 {[%clk 0:00:36]} 40. Nf2 {[%clk 0:00:06]}  Bf6 {[%clk 0:00:26]} 41. Rxf7+ {[%clk 0:00:05]}  Kxf7 {[%clk 0:00:27]} 42. Qe4 {[%clk 0:00:05]}  Qe8 {[%clk 0:00:26]} 43. Qd5+ {[%clk 0:00:04]}  Qe6 {[%clk 0:00:26]} 44. Qd7+ {[%clk 0:00:02]}  Be7 {[%clk 0:00:21]} 45. Ne4 {[%clk 0:00:02]}  Qxd7 {[%clk 0:00:18]} 46. cxd7 {[%clk 0:00:02]}  Rxc2 {[%clk 0:00:18]} 47. Rf1+ {[%clk 0:00:02]}  Ke6 {[%clk 0:00:18]} 48. Rd1 {[%clk 0:00:01]}  Bd8 {[%clk 0:00:16]} 49. Rd6+ {[%clk 0:00:02]}  Kf5 {[%clk 0:00:16]} 50. Rxg6 {[%clk 0:00:03]}  Kxg6 {[%clk 0:00:16]} 51. g4 {[%clk 0:00:03]}  Rc4 {[%clk 0:00:15]} 52. Ng3 {[%clk 0:00:03]}  Rc7 {[%clk 0:00:14]} 53. Nf5 {[%clk 0:00:04]}  Rxd7 {[%clk 0:00:15]} 54. h4 {[%clk 0:00:05]}  a5 {[%clk 0:00:15]} 55. h5+ {[%clk 0:00:05]}  Kg5 {[%clk 0:00:16]} 0-1


[Site "https://www.chess.com"]

[Event "Titled Tuesday Blitz August 24 2021"]
[White "Papasimakopoulos, Alexandros"]
[Black "Tristan, Leonardo"]
[WhiteFideId "4244125"]
[BlackFideId "113816"]
[WhiteElo "2352"]
[BlackElo "2404"]
[Result "1-0"]
[Round "06"]
[TimeControl "180+1"]
[Date "2021.08.24"]
[WhiteClock "0:00:09"]
[BlackClock "0:00:02"]

1. d4 {[%clk 0:03:00]}  d5 {[%clk 0:03:00]} 2. c4 {[%clk 0:03:01]}  e6 {[%clk 0:03:00]} 3. Nc3 {[%clk 0:03:01]}  a6 {[%clk 0:03:01]} 4. cxd5 {[%clk 0:03:01]}  exd5 {[%clk 0:03:01]} 5. Nf3 {[%clk 0:03:01]}  Nf6 {[%clk 0:03:02]} 6. Bg5 {[%clk 0:03:01]}  Be6 {[%clk 0:03:02]} 7. e3 {[%clk 0:03:01]}  Nbd7 {[%clk 0:03:02]} 8. Bd3 {[%clk 0:03:01]}  Bd6 {[%clk 0:03:02]} 9. O-O {[%clk 0:03:02]}  c6 {[%clk 0:03:03]} 10. Qc2 {[%clk 0:03:01]}  Qc7 {[%clk 0:03:03]} 11. Bh4 {[%clk 0:03:02]}  h6 {[%clk 0:03:03]} 12. Bg3 {[%clk 0:03:02]}  Bxg3 {[%clk 0:03:04]} 13. hxg3 {[%clk 0:03:03]}  O-O {[%clk 0:03:04]} 14. b4 {[%clk 0:03:02]}  b6 {[%clk 0:02:57]} 15. a4 {[%clk 0:02:54]}  a5 {[%clk 0:02:51]} 16. Rfb1 {[%clk 0:02:46]}  Rfc8 {[%clk 0:02:44]} 17. bxa5 {[%clk 0:02:06]}  Rxa5 {[%clk 0:02:42]} 18. e4 {[%clk 0:02:06]}  dxe4 {[%clk 0:02:36]} 19. Nxe4 {[%clk 0:02:06]}  Nxe4 {[%clk 0:02:37]} 20. Bxe4 {[%clk 0:02:07]}  Bd5 {[%clk 0:02:37]} 21. Bf5 {[%clk 0:01:58]}  Rb8 {[%clk 0:02:23]} 22. Bxd7 {[%clk 0:01:57]}  Qxd7 {[%clk 0:02:24]} 23. Ne5 {[%clk 0:01:58]}  Qd6 {[%clk 0:02:15]} 24. Qc3 {[%clk 0:01:57]}  f6 {[%clk 0:01:24]} 25. Nc4 {[%clk 0:01:57]}  Bxc4 {[%clk 0:01:23]} 26. Qxc4+ {[%clk 0:01:58]}  Rd5 {[%clk 0:01:23]} 27. Rd1 {[%clk 0:01:58]}  Kh8 {[%clk 0:01:19]} 28. Rac1 {[%clk 0:01:54]}  c5 {[%clk 0:01:17]} 29. Rd3 {[%clk 0:01:35]}  Rd8 {[%clk 0:01:14]} 30. Rcd1 {[%clk 0:01:26]}  Rxd4 {[%clk 0:01:09]} 31. Rxd4 {[%clk 0:01:26]}  cxd4 {[%clk 0:01:09]} 32. Rd3 {[%clk 0:01:25]}  Qc5 {[%clk 0:01:08]} 33. Qb3 {[%clk 0:01:14]}  Rd5 {[%clk 0:01:00]} 34. Rd1 {[%clk 0:01:11]}  d3 {[%clk 0:00:50]} 35. Rd2 {[%clk 0:00:56]}  Qc1+ {[%clk 0:00:42]} 36. Qd1 {[%clk 0:00:55]}  Qc3 {[%clk 0:00:36]} 37. Qe1 {[%clk 0:00:53]}  Re5 {[%clk 0:00:24]} 38. Qd1 {[%clk 0:00:53]}  Re4 {[%clk 0:00:23]} 39. Kh2 {[%clk 0:00:51]}  Rd4 {[%clk 0:00:21]} 40. Qe1 {[%clk 0:00:48]}  Kh7 {[%clk 0:00:21]} 41. Qe3 {[%clk 0:00:45]}  Qc4 {[%clk 0:00:18]} 42. Qf3 {[%clk 0:00:43]}  Rd5 {[%clk 0:00:14]} 43. Qd1 {[%clk 0:00:38]}  h5 {[%clk 0:00:13]} 44. Qf3 {[%clk 0:00:37]}  h4 {[%clk 0:00:12]} 45. g4 {[%clk 0:00:37]}  Qd4 {[%clk 0:00:12]} 46. Kh3 {[%clk 0:00:36]}  g5 {[%clk 0:00:12]} 47. Qd1 {[%clk 0:00:30]}  Kg7 {[%clk 0:00:11]} 48. Qc1 {[%clk 0:00:25]}  Rc5 {[%clk 0:00:11]} 49. Qe1 {[%clk 0:00:25]}  Rc7 {[%clk 0:00:08]} 50. Qe8 {[%clk 0:00:22]}  Rd7 {[%clk 0:00:07]} 51. Qe6 {[%clk 0:00:21]}  Qd6 {[%clk 0:00:04]} 52. Qxd6 {[%clk 0:00:19]}  Rxd6 {[%clk 0:00:04]} 53. g3 {[%clk 0:00:20]}  hxg3 {[%clk 0:00:03]} 54. Kxg3 {[%clk 0:00:20]}  Rd4 {[%clk 0:00:03]} 55. Kf3 {[%clk 0:00:21]}  Kg6 {[%clk 0:00:03]} 56. Kg3 {[%clk 0:00:13]}  Kf7 {[%clk 0:00:02]} 57. f3 {[%clk 0:00:11]}  Ke6 {[%clk 0:00:03]} 58. Kf2 {[%clk 0:00:11]}  Kd5 {[%clk 0:00:03]} 59. Ke3 {[%clk 0:00:12]}  Kc4 {[%clk 0:00:03]} 60. Rd1 {[%clk 0:00:12]}  Rd6 {[%clk 0:00:03]} 61. Rc1+ {[%clk 0:00:12]}  Kb3 {[%clk 0:00:04]} 62. Kd2 {[%clk 0:00:12]}  Kxa4 {[%clk 0:00:04]} 63. Rb1 {[%clk 0:00:12]}  b5 {[%clk 0:00:04]} 64. Ra1+ {[%clk 0:00:12]}  Kb4 {[%clk 0:00:05]} 65. Rb1+ {[%clk 0:00:13]}  Kc5 {[%clk 0:00:05]} 66. Rc1+ {[%clk 0:00:13]}  Kb6 {[%clk 0:00:06]} 67. Rb1 {[%clk 0:00:14]}  Rd5 {[%clk 0:00:06]} 68. Rb3 {[%clk 0:00:13]}  Kc6 {[%clk 0:00:06]} 69. Rb1 {[%clk 0:00:13]}  Kd6 {[%clk 0:00:07]} 70. Re1 {[%clk 0:00:13]}  Kc5 {[%clk 0:00:07]} 71. Rc1+ {[%clk 0:00:13]}  Kd4 {[%clk 0:00:08]} 72. Rb1 {[%clk 0:00:14]}  Ke5 {[%clk 0:00:07]} 73. Rb4 {[%clk 0:00:14]}  f5 {[%clk 0:00:08]} 74. gxf5 {[%clk 0:00:14]}  Kxf5 {[%clk 0:00:08]} 75. Rg4 {[%clk 0:00:14]}  Rd6 {[%clk 0:00:04]} 76. Rb4 {[%clk 0:00:14]}  Kg6 {[%clk 0:00:04]} 77. Rxb5 {[%clk 0:00:14]}  Rf6 {[%clk 0:00:04]} 78. Kxd3 {[%clk 0:00:12]}  Rxf3+ {[%clk 0:00:04]} 79. Ke2 {[%clk 0:00:13]}  Rf8 {[%clk 0:00:03]} 80. Rb1 {[%clk 0:00:10]}  g4 {[%clk 0:00:02]} 81. Rf1 {[%clk 0:00:09]} 1-0


[Site "https://www.chess.com"]